{"text_format":"1","workbook":"xlsx","n_sheets":6,"sheets":["byState","By Country","OnlyRegionsWithData","Top30","ByCategory","ByZipCode"],"not_rendered":{"charts":6,"images":0,"macros":0,"external_links":2,"defined_names":41,"comments":0,"pivot_tables":0},"unopened":[],"bounds":{"document_bytes":16777216,"sheet_cells":100000,"rows_first":2000,"rows_last":500,"rows_between":2000,"halvings":0,"cell_chars":16384,"cell_head_chars":4096},"cells_cut":0,"cells_raw":0,"read":"whole","date_system":"1900"}

{"sheet":"byState","index":0,"n_rows":52,"n_cols":2,"rows_kept":52,"cut":false,"hidden":false,"merged":[]}
["State","Rent"]
[{"$error":"#VALUE!"},{"$f":"_FV(A2,\"Median gross rent\",TRUE)","v":717}]
[{"$error":"#VALUE!"},{"$f":"_FV(A3,\"Median gross rent\",TRUE)","v":1146}]
[{"$error":"#VALUE!"},{"$f":"_FV(A4,\"Median gross rent\",TRUE)","v":913}]
[{"$error":"#VALUE!"},{"$f":"_FV(A5,\"Median gross rent\",TRUE)","v":677}]
[{"$error":"#VALUE!"},{"$f":"_FV(A6,\"Median gross rent\",TRUE)","v":1255}]
[{"$error":"#VALUE!"},{"$f":"_FV(A7,\"Median gross rent\",TRUE)","v":1002}]
[{"$error":"#VALUE!"},{"$f":"_FV(A8,\"Median gross rent\",TRUE)","v":1075}]
[{"$error":"#VALUE!"},{"$f":"_FV(A9,\"Median gross rent\",TRUE)","v":1018}]
[{"$error":"#VALUE!"},{"$f":"_FV(A10,\"Median gross rent\",TRUE)","v":1002}]
[{"$error":"#VALUE!"},{"$f":"_FV(A11,\"Median gross rent\",TRUE)","v":879}]
[{"$error":"#VALUE!"},{"$f":"_FV(A12,\"Median gross rent\",TRUE)","v":1438}]
[{"$error":"#VALUE!"},{"$f":"_FV(A13,\"Median gross rent\",TRUE)","v":743}]
[{"$error":"#VALUE!"},{"$f":"_FV(A14,\"Median gross rent\",TRUE)","v":907}]
[{"$error":"#VALUE!"},{"$f":"_FV(A15,\"Median gross rent\",TRUE)","v":745}]
[{"$error":"#VALUE!"},{"$f":"_FV(A16,\"Median gross rent\",TRUE)","v":697}]
[{"$error":"#VALUE!"},{"$f":"_FV(A17,\"Median gross rent\",TRUE)","v":757}]
[{"$error":"#VALUE!"},{"$f":"_FV(A18,\"Median gross rent\",TRUE)","v":675}]
[{"$error":"#VALUE!"},{"$f":"_FV(A19,\"Median gross rent\",TRUE)","v":788}]
[{"$error":"#VALUE!"},{"$f":"_FV(A20,\"Median gross rent\",TRUE)","v":777}]
[{"$error":"#VALUE!"},{"$f":"_FV(A21,\"Median gross rent\",TRUE)","v":1230}]
[{"$error":"#VALUE!"},{"$f":"_FV(A22,\"Median gross rent\",TRUE)","v":1102}]
[{"$error":"#VALUE!"},{"$f":"_FV(A23,\"Median gross rent\",TRUE)","v":783}]
[{"$error":"#VALUE!"},{"$f":"_FV(A24,\"Median gross rent\",TRUE)","v":848}]
[{"$error":"#VALUE!"},{"$f":"_FV(A25,\"Median gross rent\",TRUE)","v":717}]
[{"$error":"#VALUE!"},{"$f":"_FV(A26,\"Median gross rent\",TRUE)","v":746}]
[{"$error":"#VALUE!"},{"$f":"_FV(A27,\"Median gross rent\",TRUE)","v":711}]
[{"$error":"#VALUE!"},{"$f":"_FV(A28,\"Median gross rent\",TRUE)","v":726}]
[{"$error":"#VALUE!"},{"$f":"_FV(A29,\"Median gross rent\",TRUE)","v":973}]
[{"$error":"#VALUE!"},{"$f":"_FV(A30,\"Median gross rent\",TRUE)","v":1000}]
[{"$error":"#VALUE!"},{"$f":"_FV(A31,\"Median gross rent\",TRUE)","v":1192}]
[{"$error":"#VALUE!"},{"$f":"_FV(A32,\"Median gross rent\",TRUE)","v":777}]
[{"$error":"#VALUE!"},{"$f":"_FV(A33,\"Median gross rent\",TRUE)","v":1132}]
[{"$error":"#VALUE!"},{"$f":"_FV(A34,\"Median gross rent\",TRUE)","v":797}]
[{"$error":"#VALUE!"},{"$f":"_FV(A35,\"Median gross rent\",TRUE)","v":709}]
[{"$error":"#VALUE!"},{"$f":"_FV(A36,\"Median gross rent\",TRUE)","v":730}]
[{"$error":"#VALUE!"},{"$f":"_FV(A37,\"Median gross rent\",TRUE)","v":727}]
[{"$error":"#VALUE!"},{"$f":"_FV(A38,\"Median gross rent\",TRUE)","v":907}]
[{"$error":"#VALUE!"},{"$f":"_FV(A39,\"Median gross rent\",TRUE)","v":840}]
[{"$error":"#VALUE!"},{"$f":"_FV(A40,\"Median gross rent\",TRUE)","v":925}]
[{"$error":"#VALUE!"},{"$f":"_FV(A41,\"Median gross rent\",TRUE)","v":790}]
[{"$error":"#VALUE!"},{"$f":"_FV(A42,\"Median gross rent\",TRUE)","v":655}]
[{"$error":"#VALUE!"},{"$f":"_FV(A43,\"Median gross rent\",TRUE)","v":764}]
[{"$error":"#VALUE!"},{"$f":"_FV(A44,\"Median gross rent\",TRUE)","v":882}]
[{"$error":"#VALUE!"},{"$f":"_FV(A45,\"Median gross rent\",TRUE)","v":887}]
[{"$error":"#VALUE!"},{"$f":"_FV(A46,\"Median gross rent\",TRUE)","v":895}]
[{"$error":"#VALUE!"},{"$f":"_FV(A47,\"Median gross rent\",TRUE)","v":1116}]
[{"$error":"#VALUE!"},{"$f":"_FV(A48,\"Median gross rent\",TRUE)","v":1014}]
[{"$error":"#VALUE!"},{"$f":"_FV(A49,\"Median gross rent\",TRUE)","v":643}]
[{"$error":"#VALUE!"},{"$f":"_FV(A50,\"Median gross rent\",TRUE)","v":776}]
[{"$error":"#VALUE!"},{"$f":"_FV(A51,\"Median gross rent\",TRUE)","v":789}]
[{"$error":"#VALUE!"},{"$f":"_FV(A52,\"Median gross rent\",TRUE)","v":717}]

{"sheet":"By Country","index":1,"n_rows":13,"n_cols":2,"rows_kept":13,"cut":false,"hidden":false,"merged":[]}
["Country","Population"]
[{"$error":"#VALUE!"},{"$f":"_FV(A2,\"Population\")","v":44938712}]
[{"$error":"#VALUE!"},{"$f":"_FV(A3,\"Population\")","v":11353142}]
[{"$error":"#VALUE!"},{"$f":"_FV(A4,\"Population\")","v":210147125}]
[{"$error":"#VALUE!"},{"$f":"_FV(A5,\"Population\")","v":18729160}]
[{"$error":"#VALUE!"},{"$f":"_FV(A6,\"Population\")","v":49648685}]
[{"$error":"#VALUE!"},{"$f":"_FV(A7,\"Population\")","v":17084357}]
[{"$error":"#VALUE!"},{"$f":"_FV(A8,\"Population\")","v":779004}]
[{"$error":"#VALUE!"},{"$f":"_FV(A9,\"Population\")","v":6956071}]
[{"$error":"#VALUE!"},{"$f":"_FV(A10,\"Population\")","v":31989256}]
[{"$error":"#VALUE!"},{"$f":"_FV(A11,\"Population\")","v":575991}]
[{"$error":"#VALUE!"},{"$f":"_FV(A12,\"Population\")","v":3449299}]
[{"$error":"#VALUE!"},{"$f":"_FV(A13,\"Population\")","v":28515829}]

{"sheet":"OnlyRegionsWithData","index":2,"n_rows":8,"n_cols":2,"rows_kept":8,"cut":false,"hidden":false,"merged":[]}
["State","Mileage"]
["Florida",186]
["Georgia",118]
["North Carolina",118]
["South Carolina",{"$f":"80+60+60","v":200}]
["Virginia",51]
["West Virginia",181]
["Ohio",118]

{"sheet":"Top30","index":3,"n_rows":31,"n_cols":2,"rows_kept":31,"cut":false,"hidden":false,"merged":[]}
["Country","Population"]
["China",1439323776]
["India",1380004385]
["United States",331002651]
["Indonesia",273523615]
["Pakistan",220892340]
["Brazil",212559417]
["Nigeria",206139589]
["Bangladesh",164689383]
["Russia",145934462]
["Mexico",128932753]
["Japan",126476461]
["Ethiopia",114963588]
["Philippines",109581078]
["Egypt",102334404]
["Vietnam",97338579]
["DR Congo",89561403]
["Turkey",84339067]
["Iran",83992949]
["Germany",83783942]
["Thailand",69799978]
["United Kingdom",67886011]
["France",65273511]
["Italy",60461826]
["Tanzania",59734218]
["South Africa",59308690]
["Myanmar",54409800]
["Kenya",53771296]
["South Korea",51269185]
["Colombia",50882891]
["Spain",46754778]

{"sheet":"ByCategory","index":4,"n_rows":68,"n_cols":9,"rows_kept":68,"cut":false,"hidden":false,"merged":[]}
["County","Type",null,"Florida County","Type",null,"State","County","Type"]
["Brevard","Atlantic",null,"Brevard","Atlantic",null,"Florida","Brevard","Atlantic"]
["Broward","Atlantic",null,"Broward","Atlantic",null,"Florida","Broward","Atlantic"]
["Duval","Atlantic",null,"Duval","Atlantic",null,"Florida","Duval","Atlantic"]
["Flagler","Atlantic",null,"Flagler","Atlantic",null,"Florida","Flagler","Atlantic"]
["Indian River","Atlantic",null,"Indian River","Atlantic",null,"Florida","Indian River","Atlantic"]
["Martin","Atlantic",null,"Martin","Atlantic",null,"Florida","Martin","Atlantic"]
["Miami-Dade","Atlantic",null,"Miami-Dade","Atlantic",null,"Florida","Miami-Dade","Atlantic"]
["Monroe","Atlantic",null,"Monroe","Atlantic",null,"Florida","Monroe","Atlantic"]
["Nassau","Atlantic",null,"Nassau","Atlantic",null,"Florida","Nassau","Atlantic"]
["Palm Beach","Atlantic",null,"Palm Beach","Atlantic",null,"Florida","Palm Beach","Atlantic"]
["St. Johns","Atlantic",null,"St. Johns","Atlantic",null,"Florida","St. Johns","Atlantic"]
["St. Lucie","Atlantic",null,"St. Lucie","Atlantic",null,"Florida","St. Lucie","Atlantic"]
["Volusia","Atlantic",null,"Volusia","Atlantic",null,"Florida","Volusia","Atlantic"]
["Charlotte","Gulf",null,"Charlotte","Gulf",null,"Florida","Charlotte","Gulf"]
["Citrus","Gulf",null,"Citrus","Gulf",null,"Florida","Citrus","Gulf"]
["Collier","Gulf",null,"Collier","Gulf",null,"Florida","Collier","Gulf"]
["Dixie","Gulf",null,"Dixie","Gulf",null,"Florida","Dixie","Gulf"]
["Hernando","Gulf",null,"Hernando","Gulf",null,"Florida","Hernando","Gulf"]
["Hillsborough","Gulf",null,"Hillsborough","Gulf",null,"Florida","Hillsborough","Gulf"]
["Lee","Gulf",null,"Lee","Gulf",null,"Florida","Lee","Gulf"]
["Levy","Gulf",null,"Levy","Gulf",null,"Florida","Levy","Gulf"]
["Manatee","Gulf",null,"Manatee","Gulf",null,"Florida","Manatee","Gulf"]
["Pasco","Gulf",null,"Pasco","Gulf",null,"Florida","Pasco","Gulf"]
["Pinellas","Gulf",null,"Pinellas","Gulf",null,"Florida","Pinellas","Gulf"]
["Sarasota","Gulf",null,"Sarasota","Gulf",null,"Florida","Sarasota","Gulf"]
["Calhoun","Landlocked",null,"Calhoun","Landlocked",null,"Florida","Calhoun","Landlocked"]
["Gadsden","Landlocked",null,"Gadsden","Landlocked",null,"Florida","Gadsden","Landlocked"]
["Hamilton","Landlocked",null,"Hamilton","Landlocked",null,"Florida","Hamilton","Landlocked"]
["Holmes","Landlocked",null,"Holmes","Landlocked",null,"Florida","Holmes","Landlocked"]
["Jackson","Landlocked",null,"Jackson","Landlocked",null,"Florida","Jackson","Landlocked"]
["Lafayette","Landlocked",null,"Lafayette","Landlocked",null,"Florida","Lafayette","Landlocked"]
["Leon","Landlocked",null,"Leon","Landlocked",null,"Florida","Leon","Landlocked"]
["Liberty","Landlocked",null,"Liberty","Landlocked",null,"Florida","Liberty","Landlocked"]
["Madison","Landlocked",null,"Madison","Landlocked",null,"Florida","Madison","Landlocked"]
["Suwannee","Landlocked",null,"Suwannee","Landlocked",null,"Florida","Suwannee","Landlocked"]
["Washington","Landlocked",null,"Washington","Landlocked",null,"Florida","Washington","Landlocked"]
["Bay","North Gulf",null,"Bay","North Gulf",null,"Florida","Bay","North Gulf"]
["Escambia","North Gulf",null,"Escambia","North Gulf",null,"Florida","Escambia","North Gulf"]
["Franklin","North Gulf",null,"Franklin","North Gulf",null,"Florida","Franklin","North Gulf"]
["Gulf","North Gulf",null,"Gulf","North Gulf",null,"Florida","Gulf","North Gulf"]
["Jefferson","North Gulf",null,"Jefferson","North Gulf",null,"Florida","Jefferson","North Gulf"]
["Okaloosa","North Gulf",null,"Okaloosa","North Gulf",null,"Florida","Okaloosa","North Gulf"]
["Santa Rosa","North Gulf",null,"Santa Rosa","North Gulf",null,"Florida","Santa Rosa","North Gulf"]
["Taylor","North Gulf",null,"Taylor","North Gulf",null,"Florida","Taylor","North Gulf"]
["Wakulla","North Gulf",null,"Wakulla","North Gulf",null,"Florida","Wakulla","North Gulf"]
["Walton","North Gulf",null,"Walton","North Gulf",null,"Florida","Walton","North Gulf"]
["Alachua","Landlocked",null,"Alachua","Landlocked",null,"Florida","Alachua","Landlocked"]
["Baker","Landlocked",null,"Baker","Landlocked",null,"Florida","Baker","Landlocked"]
["Bradford","Landlocked",null,"Bradford","Landlocked",null,"Florida","Bradford","Landlocked"]
["Clay","Landlocked",null,"Clay","Landlocked",null,"Florida","Clay","Landlocked"]
["Columbia","Landlocked",null,"Columbia","Landlocked",null,"Florida","Columbia","Landlocked"]
["DeSoto","Landlocked",null,"DeSoto","Landlocked",null,"Florida","DeSoto","Landlocked"]
["Gilchrist","Landlocked",null,"Gilchrist","Landlocked",null,"Florida","Gilchrist","Landlocked"]
["Glades","Landlocked",null,"Glades","Landlocked",null,"Florida","Glades","Landlocked"]
["Hardee","Landlocked",null,"Hardee","Landlocked",null,"Florida","Hardee","Landlocked"]
["Hendry","Landlocked",null,"Hendry","Landlocked",null,"Florida","Hendry","Landlocked"]
["Highlands","Landlocked",null,"Highlands","Landlocked",null,"Florida","Highlands","Landlocked"]
["Lake","Landlocked",null,"Lake","Landlocked",null,"Florida","Lake","Landlocked"]
["Marion","Landlocked",null,"Marion","Landlocked",null,"Florida","Marion","Landlocked"]
["Okeechobee","Landlocked",null,"Okeechobee","Landlocked",null,"Florida","Okeechobee","Landlocked"]
["Orange","Landlocked",null,"Orange","Landlocked",null,"Florida","Orange","Landlocked"]
["Osceola","Landlocked",null,"Osceola","Landlocked",null,"Florida","Osceola","Landlocked"]
["Polk","Landlocked",null,"Polk","Landlocked",null,"Florida","Polk","Landlocked"]
["Putnam","Landlocked",null,"Putnam","Landlocked",null,"Florida","Putnam","Landlocked"]
["Seminole","Landlocked",null,"Seminole","Landlocked",null,"Florida","Seminole","Landlocked"]
["Sumter","Landlocked",null,"Sumter","Landlocked",null,"Florida","Sumter","Landlocked"]
["Union","Landlocked",null,"Union","Landlocked",null,"Florida","Union","Landlocked"]

{"sheet":"ByZipCode","index":5,"n_rows":38,"n_cols":4,"rows_kept":38,"cut":false,"hidden":false,"merged":[]}
["Zip Code","Value","City","County"]
[32901,{"$f":"A2-32900","v":1},"Melbourne","Brevard County"]
[32902,{"$f":"A3-32900","v":2},"Melbourne","Brevard County"]
[32903,{"$f":"A4-32900","v":3},"Indialantic","Brevard County"]
[32904,4,"Melbourne","Brevard County"]
[32905,5,"Melbourne","Brevard County"]
[32906,6,"Melbourne","Brevard County"]
[32907,7,"Melbourne","Brevard County"]
[32908,8,"Melbourne","Brevard County"]
[32909,9,"Melbourne","Brevard County"]
[32910,10,"Melbourne","Brevard County"]
[32911,11,"Melbourne","Brevard County"]
[32912,12,"Melbourne","Brevard County"]
[32920,20,"Port Canaveral","Brevard County"]
[32922,22,"Cocoa","Brevard County"]
[32923,23,"Cocoa","Brevard County"]
[32924,24,"Cocoa","Brevard County"]
[32925,25,"Canaveral Air Station","Brevard County"]
[32926,26,"Cocoa","Brevard County"]
[32927,27,"Port Saint John","Brevard County"]
[32931,31,"Cocoa Beach","Brevard County"]
[32932,32,"Cocoa Beach","Brevard County"]
[32934,34,"Eau Gallie","Brevard County"]
[32935,35,"Melbourne","Brevard County"]
[32936,36,"Melbourne","Brevard County"]
[32937,37,"Indian Harbor Beach","Brevard County"]
[32940,40,"Viera","Brevard County"]
[32941,41,"Melbourne","Brevard County"]
[32949,49,"Grant","Brevard County"]
[32950,50,"Malabar","Brevard County"]
[32951,51,"Melbourne","Brevard County"]
[32952,52,"Merritt Island","Brevard County"]
[32953,53,"Merritt Island","Brevard County"]
[32954,54,"Merritt Island","Brevard County"]
[32955,55,"Viera","Brevard County"]
[32956,56,"Rockledge","Brevard County"]
[32959,59,"Sharpes","Brevard County"]
[32976,76,"Barefoot Bay","Brevard County"]